fUSD/lending_fUSD_20260418
["ID","MTS","AMOUNT","RATE_DAILY","PERIOD"]
[420713859,1776483058622,-160.0,0.0003,10]
[420713860,1776483058631,-207.38,0.00030137,2]
[420713861,1776483058641,-315.86,0.000302,14]
[420713862,1776483058651,-152.91,0.00030411,120]
[420713863,1776483058660,-500.0,0.00030466,120]
[420713864,1776483058670,-222.83,0.00030495,7]
[420713865,1776483058680,-182.45,0.00030495,7]
[420713866,1776483058689,-19630.290934,0.00030594,2]
[420713867,1776483058699,-500.0,0.00030685,16]
[420713868,1776483058709,-206.0,0.0003084,30]
[420713869,1776483058718,-700.0,0.00031,2]
[420713870,1776483058728,-500.0,0.00031028,120]
[420713871,1776483058737,-2000.0,0.0003118,21]
[420713872,1776483058747,-403.49405853,0.00031184,2]
[420713873,1776483058757,-2000.0,0.000312,2]
[420713874,1776483058767,-152.75,0.00031337,7]
[420713875,1776483058776,-213.0,0.0003137,3]
[420713876,1776483058786,-500.0,0.00031433,17]
[420713877,1776483058796,-150.0,0.0003147,2]
[420713878,1776483058805,-500.0,0.00031699,120]
[420713879,1776483058815,-213.03472687,0.00031801,72]
[420713880,1776483058824,-500.0,0.00031899,2]
[420713881,1776483058834,-335.87,0.000319,120]
[420713882,1776483058844,-348.93,0.000319,120]
[420713883,1776483058854,-409.06,0.000319,120]
[420713884,1776483058864,-159.0,0.0003198,30]
[420713885,1776483058874,-466.0,0.0003198,30]
[420713886,1776483058883,-517.0,0.0003198,30]
[420713887,1776483058894,-152.0,0.0003198,30]
[420713888,1776483058903,-437.0,0.00031981,30]
[420713889,1776483058913,-170.0,0.00031981,30]
[420713890,1776483058922,-200.0,0.00031981,30]
[420713891,1776483058932,-396.0,0.00031981,30]
[420713892,1776483058941,-556.0,0.00031981,30]
[420713893,1776483058951,-157.0,0.00031981,30]
[420713894,1776483058961,-316.55,0.00032,14]
[420713895,1776483058970,-155.52,0.000321,7]
[420713896,1776483058980,-500.0,0.0003218,18]
[420713897,1776483058990,-500.0,0.00032274,120]
[420713898,1776483058999,-250.0,0.00032406,24]
[420713899,1776483059009,-7148.46,0.00032588,2]
[420713900,1776483059019,-240.0,0.00032712,25]
[420713901,1776483059028,-167.0813,0.0003276,5]
[420713902,1776483059038,-1120.93507053,0.00032824,21]
[420713903,1776483059047,-500.0,0.00032849,120]
[420713904,1776483059056,-199.91299956,0.0003286,2]
[420713905,1776483059066,-206.0,0.0003286,30]
[420713906,1776483059075,-677.12,0.00032869,7]
[420713907,1776483059084,-500.0,0.00032869,30]
[420713908,1776483059094,-517.91,0.00032869,120]
[420713909,1776483059103,-1136.26,0.00032869,120]
[420713910,1776483059112,-828.79,0.00032869,120]
[420713911,1776483059122,-503.01,0.00032869,120]
[420713912,1776483059132,-200.0,0.0003287,30]
[420713913,1776483059142,-500.0,0.00032876,30]
[420713914,1776483059151,-625.73001359,0.00032876,120]
[420713915,1776483059161,-500.0,0.00032876,120]
[420713916,1776483059171,-1429.03,0.00032876,120]
[420713917,1776483059180,-1846.35,0.00032876,120]
[420713918,1776483059190,-1000.0,0.00032876,30]
[420713919,1776483059200,-597.29069821,0.00032876,30]
[420713920,1776483059210,-2216.79,0.00032876,120]
[420713921,1776483059219,-1228.03,0.00032876,2]
[420713922,1776483059229,-534.58,0.00032876,120]
[420713923,1776483059239,-163.53,0.00032877,2]
[420713924,1776483059248,-163.55,0.00032877,2]
[420713925,1776483059258,-163.55,0.00032877,2]
[420713926,1776483059268,-163.55,0.00032877,2]
[420713927,1776483059277,-163.55,0.00032877,2]
[420713928,1776483059287,-163.55,0.00032877,2]
[420713929,1776483059296,-163.55,0.00032877,2]
[420713930,1776483059305,-163.55,0.00032877,2]
[420713931,1776483059315,-163.55,0.00032877,2]
[420713932,1776483059325,-163.55,0.00032877,2]
[420713933,1776483059334,-163.55,0.00032877,2]
[420713934,1776483059344,-1599.62230137,0.00032877,2]
[420713935,1776483059354,-207.38,0.00032877,2]
[420713936,1776483059363,-175.87094855,0.00032877,2]
[420713937,1776483059373,-1004.88,0.00032877,2]
[420713938,1776483059382,-10000.0,0.00032877,120]
[420713939,1776483059393,-2000.0,0.00032877,120]
[420713940,1776483059402,-2000.0,0.00032877,120]
[420713941,1776483059412,-2000.0,0.00032877,120]
[420713942,1776483059422,-2000.0,0.00032877,120]
[420713943,1776483059433,-2000.0,0.00032877,120]
[420713944,1776483059442,-2000.0,0.00032877,120]
[420713945,1776483059452,-2000.0,0.00032877,120]
[420713946,1776483059462,-650.0,0.00032877,120]
[420713947,1776483059472,-567.49368786,0.00032877,5]
[420713948,1776483059482,-500.0,0.00032927,18]
[420713949,1776483059493,-159.0,0.0003298,30]
[420713950,1776483059503,-466.0,0.0003298,30]
[420713951,1776483059514,-517.0,0.0003298,30]
[420713952,1776483059524,-152.0,0.0003298,30]
[420713953,1776483059534,-437.0,0.00032981,30]
[420713954,1776483059544,-170.0,0.00032981,30]
[420713955,1776483059553,-200.0,0.00032981,30]
[420713956,1776483059563,-396.0,0.00032981,30]
[420713957,1776483059573,-556.0,0.00032981,30]
[420713958,1776483059583,-157.0,0.00032981,30]
[420713959,1776483059592,-900.0,0.00032992,2]
[420713960,1776483059602,-3538.22400435,0.00033,30]
[420713961,1776483059612,-160.0,0.00033,120]
[420713962,1776483059622,-150.0,0.00033,14]
[420713963,1776483059632,-750.0,0.00033,2]
[420713964,1776483059643,-500.0,0.00033022,60]
[420713965,1776483059652,-500.0,0.00033022,60]
[420713966,1776483059662,-500.0,0.00033022,60]
[420713967,1776483059672,-500.0,0.00033022,60]
[420713968,1776483059683,-500.0,0.00033022,60]
[420713969,1776483059692,-500.0,0.00033022,60]
[420713970,1776483059702,-500.0,0.00033022,60]
[420713971,1776483059712,-500.0,0.00033022,60]
[420713972,1776483059721,-500.0,0.00033022,60]
[420713973,1776483059731,-500.0,0.00033022,60]
[420713974,1776483059740,-500.0,0.00033022,60]
[420713975,1776483059750,-500.0,0.00033022,60]
[420713976,1776483059759,-500.0,0.00033022,60]
[420713977,1776483059769,-500.0,0.00033022,60]
[420713978,1776483059779,-504.1498946,0.00033022,60]
[420713979,1776483059789,-250.0,0.00033022,60]
[420713980,1776483059800,-250.0,0.00033022,60]
[420713981,1776483059811,-500.0,0.00033022,60]
[420713982,1776483059822,-600.0,0.00033022,60]
[420713983,1776483059832,-500.0,0.00033022,60]
[420713984,1776483059842,-500.0,0.00033022,60]
[420713985,1776483059853,-600.0,0.00033022,60]
[420713986,1776483059863,-500.0,0.00033022,60]
[420713987,1776483059873,-581.2939653,0.00033022,60]
[420713988,1776483059883,-600.0,0.00033022,60]
[420713989,1776483059892,-500.0,0.00033022,60]
[420713990,1776483059902,-600.0,0.00033022,60]
[420713991,1776483059912,-500.0,0.00033022,60]
[420713992,1776483059921,-600.0,0.00033022,60]
[420713993,1776483059931,-500.0,0.00033022,60]
[420713994,1776483059942,-600.0,0.00033022,60]
[420713995,1776483059952,-500.0,0.00033022,60]
[420713996,1776483059961,-600.0,0.00033022,60]
[420713997,1776483059971,-500.0,0.00033022,60]
[420713998,1776483059980,-600.0,0.00033022,60]
[420713999,1776483059990,-250.0,0.00033022,60]
[420714000,1776483060000,-500.0,0.00033022,60]
[420714001,1776483060010,-600.0,0.00033022,60]
[420714002,1776483060020,-500.0,0.00033022,60]
[420714003,1776483060029,-202.5,0.00033022,60]
[420714004,1776483060040,-600.0,0.00033022,60]
[420714005,1776483060049,-500.0,0.00033022,60]
[420714006,1776483060059,-250.0,0.00033022,60]
[420714007,1776483060068,-600.0,0.00033022,60]
[420714008,1776483060078,-500.0,0.00033022,60]
[420714009,1776483060088,-600.0,0.00033022,60]
[420714010,1776483060099,-600.0,0.00033022,60]
[420714011,1776483060109,-500.0,0.00033022,60]
[420714012,1776483060119,-600.0,0.00033022,60]
[420714013,1776483060129,-188.2571351,0.00033022,60]
[420714014,1776483060138,-500.0,0.00033022,60]
[420714015,1776483060148,-600.0,0.00033022,60]
[420714016,1776483060158,-500.0,0.00033022,60]
[420714017,1776483060168,-500.0,0.00033022,60]
[420714018,1776483060178,-600.0,0.00033022,60]
[420714019,1776483060188,-500.0,0.00033022,60]
[420714020,1776483060197,-600.0,0.00033022,60]
[420714021,1776483060208,-500.0,0.00033022,60]
[420714022,1776483060218,-203.1257311,0.00033022,60]
[420714023,1776483060228,-600.0,0.00033022,60]
[420714024,1776483060239,-444.2133306,0.00033022,60]
[420714025,1776483060249,-646.5806085,0.00033022,60]
[420714026,1776483060259,-600.0,0.00033022,60]
[420714027,1776483060269,-500.0,0.00033022,60]
[420714028,1776483060279,-250.0,0.00033022,60]
[420714029,1776483060289,-600.0,0.00033022,60]
[420714030,1776483060299,-500.0,0.00033022,60]
[420714031,1776483060308,-500.0,0.00033022,60]
[420714032,1776483060318,-500.0,0.00033022,60]
[420714033,1776483060327,-250.0,0.00033022,60]
[420714034,1776483060338,-250.0,0.00033022,60]
[420714035,1776483060347,-898.0027162,0.00033022,60]
[420714036,1776483060357,-600.0,0.00033022,60]
[420714037,1776483060366,-500.0,0.00033022,60]
[420714038,1776483060376,-600.0,0.00033022,60]
[420714039,1776483060386,-500.0,0.00033022,60]
[420714040,1776483060395,-208.2598701,0.00033022,60]
[420714041,1776483060403,-600.0,0.00033022,60]
[420714042,1776483060413,-500.0,0.00033022,60]
[420714043,1776483060422,-600.0,0.00033022,60]
[420714044,1776483060432,-500.0,0.00033022,60]
[420714045,1776483060441,-600.0,0.00033022,60]
[420714046,1776483060451,-250.0,0.00033022,60]
[420714047,1776483060461,-500.0,0.00033022,60]
[420714048,1776483060471,-600.0,0.00033022,60]
[420714049,1776483060481,-500.0,0.00033022,60]
[420714050,1776483060491,-500.0,0.00033022,60]
[420714051,1776483060501,-500.0,0.00033022,60]
[420714052,1776483060511,-600.0,0.00033022,60]
[420714053,1776483060520,-221.1756941,0.00033022,60]
[420714054,1776483060531,-500.0,0.00033022,60]
[420714055,1776483060541,-500.0,0.00033022,60]
[420714056,1776483060552,-700.2195979,0.00033022,60]
[420714057,1776483060563,-803.7313139,0.00033022,60]
[420714058,1776483060574,-250.0,0.00033022,60]
[420714059,1776483060584,-500.0,0.00033022,60]
[420714060,1776483060594,-500.0,0.00033022,60]
[420714061,1776483060604,-500.0,0.00033022,60]
[420714062,1776483060615,-500.0,0.00033022,60]
[420714063,1776483060627,-500.0,0.00033022,60]
[420714064,1776483060638,-500.0,0.00033022,60]
[420714065,1776483060649,-765.2356243,0.00033022,60]
[420714066,1776483060660,-500.0,0.00033022,60]
[420714067,1776483060670,-500.0,0.00033022,60]
[420714068,1776483060682,-500.0,0.00033022,60]
[420714069,1776483060691,-500.0,0.00033022,60]
[420714070,1776483060701,-500.0,0.00033022,60]
[420714071,1776483060711,-500.0,0.00033022,60]
[420714072,1776483060721,-500.0,0.00033022,60]
[420714073,1776483060731,-500.0,0.00033022,60]
[420714074,1776483060741,-500.0,0.00033022,60]
[420714075,1776483060751,-623.0674068,0.00033022,60]
[420714076,1776483060761,-500.0,0.00033022,60]
[420714077,1776483060771,-500.0,0.00033022,60]
[420714078,1776483060781,-500.0,0.00033022,60]
[420714079,1776483060791,-500.0,0.00033022,60]
[420714080,1776483060902,-968.0623596,0.00033022,60]
[420714081,1776483060912,-500.0,0.00033022,60]
[420714082,1776483060921,-500.0,0.00033022,60]
[420714083,1776483060932,-500.0,0.00033022,60]
[420714084,1776483060941,-500.0,0.00033022,60]
[420714085,1776483060950,-500.0,0.00033022,60]
[420714086,1776483060960,-500.0,0.00033022,60]
[420714087,1776483060970,-500.0,0.00033022,60]
[420714088,1776483060979,-500.0,0.00033022,60]
[420714089,1776483060988,-821.631258,0.00033022,60]
[420714090,1776483060998,-226.4463312,0.00033022,60]
[420714091,1776483061007,-250.0,0.00033022,60]
[420714092,1776483061016,-186.6943158,0.00033022,60]
[420714093,1776483061025,-500.0,0.00033022,60]
[420714094,1776483061034,-500.0,0.00033022,60]
[420714095,1776483061045,-500.0,0.00033022,60]
[420714096,1776483061054,-500.0,0.00033022,60]
[420714097,1776483061063,-500.0,0.00033022,60]
[420714098,1776483061072,-500.0,0.00033022,60]
[420714099,1776483061081,-500.0,0.00033022,60]
[420714100,1776483061090,-500.0,0.00033022,60]
[420714101,1776483061099,-500.0,0.00033022,60]
[420714102,1776483061109,-500.0,0.00033022,60]
[420714103,1776483061118,-500.0,0.00033022,60]
[420714104,1776483061128,-500.0,0.00033022,60]
[420714105,1776483061137,-500.0,0.00033022,60]
[420714106,1776483061147,-567.7262041,0.00033022,60]
[420714107,1776483061156,-500.0,0.00033022,60]
[420714108,1776483061166,-500.0,0.00033022,60]
[420714109,1776483061175,-500.0,0.00033022,60]
[420714110,1776483061184,-500.0,0.00033022,60]
[420714111,1776483061192,-500.0,0.00033022,60]
[420714112,1776483061201,-500.0,0.00033022,60]
[420714113,1776483061210,-500.0,0.00033022,60]
[420714114,1776483061219,-522.1986528,0.00033022,60]
[420714115,1776483061227,-150.0,0.00033043,2]
[420714116,1776483061236,-1500.0,0.00033105,15]
[420714117,1776483061245,-1500.0,0.00033105,15]
[420714118,1776483061253,-1500.0,0.00033105,15]
[420714119,1776483061262,-1500.0,0.00033105,15]
[420714120,1776483061271,-1500.0,0.00033105,15]
[420714121,1776483061281,-1500.0,0.00033105,15]
[420714122,1776483061290,-1500.0,0.00033105,15]
[420714123,1776483061299,-1500.0,0.00033105,15]
[420714124,1776483061308,-1500.0,0.00033105,15]
[420714125,1776483061317,-1603.496774,0.00033105,15]
[420714126,1776483061327,-213.0,0.00033292,3]
[420714127,1776483061336,-451.21393274,0.00033384,30]
[420714128,1776483061345,-500.0,0.00033425,120]
[420714129,1776483061355,-500.0,0.00033674,19]
[420714130,1776483061364,-813.39,0.00033699,120]
[420714131,1776483061374,-500.0,0.0003378,7]
[420714132,1776483061383,-2500.0,0.0003378,5]
[420714133,1776483061392,-251.9183821,0.00033851,77]
[420714134,1776483061401,-2285.455,0.00033949,37]
[420714135,1776483061411,-159.0,0.0003398,30]
[420714136,1776483061420,-466.0,0.0003398,30]
[420714137,1776483061429,-517.0,0.0003398,30]
[420714138,1776483061440,-152.0,0.0003398,30]
[420714139,1776483061449,-437.0,0.00033981,30]
[420714140,1776483061459,-170.0,0.00033981,30]
[420714141,1776483061468,-200.0,0.00033981,30]
[420714142,1776483061478,-396.0,0.00033981,30]
[420714143,1776483061488,-556.0,0.00033981,30]
[420714144,1776483061498,-157.0,0.00033981,30]
[420714145,1776483061507,-1001.0,0.00034,120]
[420714146,1776483061516,-500.0,0.00034,120]
[420714147,1776483061525,-500.0,0.00034,5]
[420714148,1776483061535,-2000.0,0.00034,5]
[420714149,1776483061545,-19630.290934,0.00034214,2]
[420714150,1776483061555,-158.0,0.0003439,3]
[420714151,1776483061566,-500.0,0.00034421,20]
[420714152,1776483061575,-500.0,0.00034575,120]
[420714153,1776483061586,-500.0,0.00034599,2]
[420714154,1776483061595,-150.0,0.00034696,2]
[420714155,1776483061605,-670.5,0.00034712,30]
[420714156,1776483061616,-242.28,0.00034712,30]
[420714157,1776483061626,-1500.0,0.00034795,2]
[420714158,1776483061635,-457.12765802,0.00034843,30]
[420714159,1776483061645,-518.51035314,0.00034849,120]
[420714160,1776483061653,-677.12,0.00034852,7]
[420714161,1776483061663,-500.0,0.00034852,30]
[420714162,1776483061673,-517.91,0.00034852,120]
[420714163,1776483061683,-228.42530872,0.00034852,120]
[420714164,1776483061692,-1136.26,0.00034852,120]
[420714165,1776483061703,-1429.03,0.00034852,120]
[420714166,1776483061712,-1846.35,0.00034852,120]
[420714167,1776483061721,-828.79,0.00034852,120]
[420714168,1776483061731,-2216.79,0.00034852,120]
[420714169,1776483061740,-1228.03,0.00034852,2]
[420714170,1776483061749,-534.58,0.00034852,120]
[420714171,1776483061759,-503.01,0.00034852,120]
[420714172,1776483061768,-25000.0,0.00034853,10]
[420714173,1776483061779,-25000.0,0.00034861,10]
[420714174,1776483061788,-25000.0,0.0003487,10]
[420714175,1776483061798,-22487.21158054,0.00034879,10]
[420714176,1776483064140,-2317.95,0.00010084,2]
[420714242,1776484174690,-150.0,8.22e-05,2]
[420714243,1776484174713,-257.0,8.22e-05,2]
[420714244,1776484174735,-193.0,8.232e-05,2]
[420714245,1776484174757,-250.0,8.232e-05,2]
[420714246,1776484174778,-499.6651445,8.245e-05,2]
[420714259,1776484232022,-150.0,8.22e-05,2]
[420714260,1776484232031,-250.0,8.22e-05,2]
[420714271,1776484232151,-7.0,8.22e-05,2]
[420714274,1776484232160,-693.37599953,8.245e-05,2]
[420714277,1776484232172,-1216.57072602,8.245e-05,2]
[420714284,1776484232196,-273.719,8.245e-05,2]
[420714287,1776484232207,-385.00293256,8.245e-05,2]
[420714289,1776484232219,-1931.66619739,8.245e-05,2]
[420714291,1776484232228,-2000.0,8.269e-05,2]
[420714292,1776484232238,-165.12276016,8.316e-05,2]
[420714293,1776484232247,-252.09072428,8.316e-05,2]
[420714294,1776484232256,-150.0,8.416e-05,2]
[420714295,1776484232265,-300.0,8.431e-05,2]
[420714296,1776484232275,-300.0,8.431e-05,2]
[420714297,1776484232284,-300.0,8.431e-05,2]
[420714298,1776484232293,-300.0,8.431e-05,2]
[420714299,1776484232303,-506.90702392,8.431e-05,2]
[420714300,1776484232315,-693.09297608,8.431e-05,2]
[420714301,1776484232324,-5000.0,8.432e-05,2]
[420714302,1776484232335,-150.0,8.564e-05,2]
[420714303,1776484232344,-1439.92990243,8.607e-05,2]
[420714304,1776484232356,-32165.86140857,8.607e-05,2]
[420714305,1776484232366,-150.0,8.692e-05,2]
[420714306,1776484232375,-500.76315893,8.693e-05,2]
[420714307,1776484232385,-160.08732357,8.693e-05,2]
[420714308,1776484232395,-501.29776435,8.693e-05,2]
[420714309,1776484232404,-623.03411958,8.693e-05,2]
[420714310,1776484232415,-500.0,8.693e-05,2]
[420714311,1776484232424,-160.08317779,8.693e-05,2]
[420714312,1776484232434,-160.06027806,8.693e-05,2]
[420714313,1776484232444,-500.0,8.693e-05,2]
[420714314,1776484232453,-500.0,8.693e-05,2]
[420714315,1776484232463,-500.0,8.693e-05,2]
[420714316,1776484232472,-500.0,8.693e-05,2]
[420714317,1776484232483,-501.25134182,8.693e-05,2]
[420714318,1776484232492,-641.09102086,8.693e-05,2]
[420714319,1776484232502,-29334.62449901,8.714e-05,2]
[420714320,1776484232514,-1512.86999631,8.714e-05,2]
[420714321,1776484232526,-413.48160874,8.714e-05,2]
[420714322,1776484232539,-303.8818997,8.714e-05,2]
[420714323,1776484232551,-3200.41564869,8.714e-05,2]
[420714324,1776484232573,-1149.99016759,8.714e-05,2]
[420714325,1776484232585,-7529.77964793,8.714e-05,2]
[420714326,1776484232597,-2987.76810381,8.714e-05,2]
[420714327,1776484232608,-12903.30842822,8.714e-05,2]
[420714328,1776484232618,-500.0,8.756e-05,2]
[420714329,1776484232627,-500.0,8.756e-05,2]
[420714330,1776484232637,-316.58612091,8.756e-05,2]
[420714331,1776484232646,-1048.44255032,8.756e-05,2]
[420714332,1776484232656,-500.0,8.756e-05,2]
[420714333,1776484232666,-500.0,8.756e-05,2]
[420714334,1776484232675,-500.0,8.756e-05,2]
[420714335,1776484232685,-150.0,8.885e-05,2]
[420714336,1776484232695,-4984.288,9.042e-05,2]
[420714337,1776484232705,-5000.0,9.042e-05,2]
[420714338,1776484232715,-193.0,9.042e-05,2]
[420714339,1776484232725,-250.0,9.042e-05,2]
[420714340,1776484232734,-193.71063077,9.042e-05,2]
[420714341,1776484232744,-2950.44504244,9.042e-05,2]
[420714342,1776484232754,-332.29859471,9.042e-05,2]
[420714343,1776484232763,-7320.3139391,9.08e-05,2]
[420714344,1776484232772,-351.0,9.116e-05,2]
[420714345,1776484232782,-150.0,9.12e-05,2]
[420714346,1776484232791,-1303.94321839,9.141e-05,2]
[420714347,1776484232804,-712.91818161,9.141e-05,2]
[420714348,1776484232813,-336.32290343,9.219e-05,2]
[420714349,1776484232828,-3496.37163856,9.219e-05,2]
[420714350,1776484232838,-500.0,9.241e-05,2]
[420714351,1776484232848,-1000.0,9.241e-05,2]
[420714352,1776484232857,-1000.0,9.241e-05,2]
[420714353,1776484232867,-1000.0,9.241e-05,2]
[420714354,1776484232876,-1000.0,9.241e-05,2]
[420714355,1776484232885,-70.6350869,9.241e-05,2]
[420714356,1776484232897,-311.89842437,9.241e-05,2]
[420714357,1776484232966,-120.29502975,9.241e-05,2]
[420714358,1776484232976,-366.0,9.248e-05,2]
[420714359,1776484232988,-420.0,9.274e-05,2]
[420714360,1776484232997,-420.0,9.274e-05,2]
[420714361,1776484233007,-420.0,9.274e-05,2]
[420714362,1776484233017,-902.70497025,9.274e-05,2]
[420714363,1776484233030,-777.29502975,9.274e-05,2]
[420714364,1776484233040,-933.93514646,9.303e-05,2]
[420714365,1776484233053,-417.51182976,9.303e-05,2]
[420714366,1776484233066,-648.55302378,9.303e-05,2]
[420714367,1776484233076,-323.16851209,9.304e-05,2]
[420714368,1776484233090,-676.83148791,9.304e-05,2]
[420714369,1776484233100,-1000.0,9.304e-05,2]
[420714370,1776484233110,-323.16851209,9.304e-05,2]
[420714371,1776484233135,-678.69377894,9.304e-05,2]
[420714372,1776484233145,-1000.0,9.304e-05,2]
[420714373,1776484233155,-266.02502715,9.304e-05,2]
[420714374,1776484233164,-2148.96332305,9.308e-05,2]
[420714375,1776484233174,-2500.0,9.32e-05,2]
[420714376,1776484233183,-367.0,9.387e-05,2]
[420714377,1776484233193,-2854.9,9.387e-05,2]
[420714378,1776484233202,-2854.9,9.387e-05,2]
[420714379,1776484233212,-500.52663571,9.403e-05,2]
[420714380,1776484233222,-854.0,9.405e-05,2]
[420714381,1776484233232,-151.0,9.417e-05,2]
[420714382,1776484233241,-248.652,9.418e-05,2]
[420714383,1776484233250,-249.99999999,9.418e-05,2]
[420714384,1776484233259,-500.0,9.418e-05,2]
[420714385,1776484233269,-500.0,9.418e-05,2]
[420714386,1776484233278,-195.24250796,9.418e-05,2]
[420714387,1776484233288,-307.91242444,9.418e-05,2]
[420714388,1776484233297,-500.55328926,9.418e-05,2]
[420714389,1776484233307,-500.0,9.418e-05,2]
[420714390,1776484233316,-500.0,9.418e-05,2]
[420714391,1776484233327,-358.7031346,9.418e-05,2]
[420714392,1776484233342,-500.0,9.418e-05,2]
[420714393,1776484233353,-500.0,9.418e-05,2]
[420714394,1776484233364,-203.52175879,9.418e-05,2]
[420714395,1776484233374,-500.0,9.418e-05,2]
[420714396,1776484233383,-489.49259355,9.418e-05,2]
[420714397,1776484233393,-888.86656014,9.418e-05,2]
[420714398,1776484233403,-888.86656014,9.418e-05,2]
[420714399,1776484233413,-888.86656014,9.418e-05,2]
[420714400,1776484233422,-888.86656014,9.418e-05,2]
[420714401,1776484233434,-888.86656014,9.418e-05,2]
[420714402,1776484233443,-888.86656014,9.418e-05,2]
[420714403,1776484233454,-888.86656014,9.418e-05,2]
[420714404,1776484233465,-888.86656014,9.418e-05,2]
[420714405,1776484233476,-888.86656014,9.418e-05,2]
[420714406,1776484233485,-888.86656014,9.418e-05,2]
[420714407,1776484233495,-888.86656014,9.418e-05,2]
[420714408,1776484233506,-888.86656014,9.418e-05,2]
[420714409,1776484233516,-888.86656014,9.418e-05,2]
[420714410,1776484233525,-888.86656014,9.418e-05,2]
[420714411,1776484233535,-888.86656014,9.418e-05,2]
[420714412,1776484233545,-888.86656014,9.418e-05,2]
[420714413,1776484233554,-888.86656014,9.418e-05,2]
[420714414,1776484233564,-888.86656014,9.418e-05,2]
[420714415,1776484233574,-888.86656014,9.418e-05,2]
[420714416,1776484233584,-888.86656014,9.418e-05,2]
[420714417,1776484233595,-888.86656014,9.418e-05,2]
[420714418,1776484233605,-888.86656014,9.418e-05,2]
[420714419,1776484233616,-888.86656014,9.418e-05,2]
[420714420,1776484233626,-888.86656014,9.418e-05,2]
[420714421,1776484233636,-888.86656014,9.418e-05,2]
[420714422,1776484233646,-888.86656014,9.418e-05,2]
[420714423,1776484233656,-888.86656014,9.418e-05,2]
[420714424,1776484233666,-888.86656014,9.418e-05,2]
[420714425,1776484233676,-888.86656014,9.418e-05,2]
[420714426,1776484233686,-888.86656014,9.418e-05,2]
[420714427,1776484233697,-888.86656014,9.418e-05,2]
[420714428,1776484233708,-888.86656014,9.418e-05,2]
[420714429,1776484233718,-888.86656014,9.418e-05,2]
[420714430,1776484233732,-888.86656014,9.418e-05,2]
[420714431,1776484233742,-888.86656014,9.418e-05,2]
[420714432,1776484233753,-888.86656014,9.418e-05,2]
[420714433,1776484233763,-888.86656014,9.418e-05,2]
[420714434,1776484233774,-888.86656014,9.418e-05,2]
[420714435,1776484233784,-888.86656014,9.418e-05,2]
[420714436,1776484233795,-888.86656014,9.418e-05,2]
[420714437,1776484233805,-888.86656014,9.418e-05,2]
[420714438,1776484233815,-888.86656014,9.418e-05,2]
[420714439,1776484233825,-888.86656014,9.418e-05,2]
[420714440,1776484233835,-888.86656014,9.418e-05,2]
[420714441,1776484233845,-888.86656014,9.418e-05,2]
[420714442,1776484233855,-888.86656014,9.418e-05,2]
[420714443,1776484233865,-888.86656014,9.418e-05,2]
[420714444,1776484233875,-888.86656014,9.418e-05,2]
[420714445,1776484233885,-888.86656014,9.418e-05,2]
[420714446,1776484233895,-888.86656014,9.418e-05,2]
[420714447,1776484233905,-888.86656014,9.418e-05,2]
[420714448,1776484233915,-888.86656014,9.418e-05,2]
[420714449,1776484233925,-888.86656014,9.418e-05,2]
[420714450,1776484233935,-888.86656014,9.418e-05,2]
[420714451,1776484233945,-888.86656014,9.418e-05,2]
[420714452,1776484233955,-881.95315356,9.418e-05,2]
[420714453,1776484233965,-881.95315356,9.418e-05,2]
[420714454,1776484233976,-881.95315356,9.418e-05,2]
[420714455,1776484233986,-881.95315356,9.418e-05,2]
[420714456,1776484233995,-881.95315356,9.418e-05,2]
[420714457,1776484234005,-881.95315356,9.418e-05,2]
[420714458,1776484234015,-881.95315356,9.418e-05,2]
[420714459,1776484234026,-881.95315356,9.418e-05,2]